[Event "Slovakian ECo-C Extraliga 2024-25"]
[Site "Slovakia"]
[Date "2024.11.24"]
[Round "2.1"]
[White "Pechac, Jergus"]
[Black "Hrbek, Stepan"]
[Result "1/2-1/2"]
[Annotator "RC"]
[ECO "E60"]
[WhiteElo "2598"]
[BlackElo "2407"]
[PlyCount "98"]
[EventDate "2024.09.12"]
[EventType "team-tourn"]
[EventCountry "SVK"]
[SourceTitle "playchess.com"]
[Source "ChessBase"]
[SourceQuality "1"]
[TimeControl "5400+30"]

1. Nf3 {[%emt 0:00:02]} d5 {[%emt 0:00:40]} 2. b3 {[%emt 0:00:13]} Nf6 {[%emt 0:00:36]} 3. Bb2 {[%emt 0:01:17]} g6 {[%emt 0:00:21]} 4. e3 {[%emt 0:00:27]} Bg7 {[%emt 0:00:12]} 5. c4 {[%emt 0:00:05]} dxc4 {[%emt 0:00:30]} 6. Bxc4 {[%emt 0:00:09]} O-O {[%emt 0:00:50]} 7. O-O {[%emt 0:00:18]} c5 {[%emt 0:03:13]} 8. d4 {[%emt 0:00:06]} cxd4 {[%emt 0:02:02]} 9. Nxd4 {[%emt 0:00:08]} Bd7 {[%emt 0:01:21]} 10. Nd2 {[%emt 0:00:07]} Nc6 {[%emt 0:02:02]} 11. N2f3 {[%emt 0:00:08]} Nxd4 {[%emt 0:06:07]} 12. Nxd4 {[%emt 0:00:11]} Ne4 {[%emt 0:00:22]} 13. Rc1 {[%emt 0:05:21]} Nd6 {[%emt 0:06:45]} 14. Be2 {[%emt 0:00:30]} Qb6 {[%emt 0:05:46]} 15. h3 {[%emt 0:03:12]} Rfd8 {[%emt 0:05:34]} 16. Qc2 {[%emt 0:02:47]} Rac8 {[%emt 0:04:32]} 17. Qb1 {[%emt 0:00:17]} Nf5 {[%emt 0:00:14]} 18. Rxc8 {[%emt 0:04:25]} Rxc8 {[%emt 0:03:29]} 19. Rd1 {[%emt 0:05:41]} Nxd4 {[%emt 0:05:13]} 20. Bxd4 {[%emt 0:00:06]} Bxd4 {[%emt 0:00:04]} 21. Rxd4 {[%emt 0:00:06]} Be6 {[%emt 0:00:40]} 22. Qd1 {[%emt 0:02:12]} Qa5 {[%emt 0:02:53]} 23. Ra4 {[%emt 0:01:32]} Qc5 {[%emt 0:05:35]} 24. Bf3 {[%emt 0:02:04]} b5 {[%emt 0:04:21]} 25. Ra6 {[%emt 0:14:15]} Rc7 {[%emt 0:03:05]} 26. b4 {[%emt 0:15:28]} Qe5 {[%emt 0:03:13]} 27. a3 {[%emt 0:02:30]} Rd7 {[%emt 0:04:09]} 28. Qc1 {[%emt 0:02:22]} Bc4 {[%emt 0:02:50]} 29. Rc6 {[%emt 0:00:19]} Rd3 {[%emt 0:02:15]} 30. Be2 {[%emt 0:08:25]} Qc3 {[%emt 0:14:03]} 31. Qxc3 {[%emt 0:02:50]} Rxc3 {[%emt 0:00:02]} 32. Bxc4 {[%emt 0:00:25]} bxc4 {[%emt 0:00:06]} 33. Ra6 {[%emt 0:01:06]} Rc1+ {[%emt 0:00:10]} 34. Kh2 {[%emt 0:00:04]} c3 {[%emt 0:00:12]} 35. Rxa7 {[%emt 0:00:05]} Ra1 {[%emt 0:00:04]} 36. Rc7 {[%emt 0:00:05]} Rxa3 {[%emt 0:00:04]} 37. Rxe7 {[%emt 0:00:20]} Rb3 {[%emt 0:00:36]} 38. Rc7 {[%emt 0:00:04]} h5 {[%emt 0:00:17]} 39. Kg3 {[%emt 0:00:27]} Rxb4 {[%emt 0:00:37]} 40. Rxc3 {[%emt 0:00:05]} Kg7 {[%emt 0:01:41]} 41. f4 {[%emt 0:00:36]} Rb2 {[%emt 0:04:33]} 42. e4 {[%emt 0:00:16]} Ra2 {[%emt 0:03:07]} 43. Re3 {[%emt 0:02:33]} Rb2 {[%emt 0:00:32]} 44. Re1 {[%emt 0:00:14]} Ra2 {[%emt 0:01:43]} 45. Rf1 {[%emt 0:00:05]} h4+ {[%emt 0:02:45]} 46. Kf3 {[%emt 0:01:14]} Ra3+ {[%emt 0:00:17]} 47. Kf2 {[%emt 0:00:06]} Ra2+ {[%emt 0:00:08]} 48. Kf3 {[%emt 0:00:03]} Ra3+ {[%emt 0:00:06]} 49. Kf2 {[%emt 0:00:02]} Ra2+ {[%emt 0:00:26]} 1/2-1/2

[Event "Slovakian ECo-C Extraliga 2024-25"]
[Site "Slovakia"]
[Date "2024.11.24"]
[Round "2.1"]
[White "Krejci, Jan"]
[Black "Aczel, Gergely"]
[Result "1-0"]
[Annotator "TA"]
[ECO "A18"]
[WhiteElo "2526"]
[BlackElo "2488"]
[PlyCount "55"]
[EventDate "2024.09.12"]
[EventType "team-tourn"]
[EventCountry "SVK"]
[SourceTitle "playchess.com"]
[Source "ChessBase"]
[SourceQuality "1"]
[TimeControl "5400+30"]

{[%evp 12,55,20,26,12,0,17,15,13,12,51,0,0,0,4,10,7,0,23,27,30,0,72,61,58,48,77,72,151,145,184,159,171,163,371,370,29983,264,29984,29985,29985,29986,29997,29998,29998,29999]} 1. c4 {[%emt 0:00:03]} Nf6 {[%emt 0:00:10]} 2. Nc3 {[%emt 0:00:05]} e6 {[%emt 0:00:28]} 3. e4 {[%emt 0:00:37]} d5 {[%emt 0:00:11]} 4. e5 {[%emt 0:00:06]} d4 {[%emt 0:00:07]} 5. exf6 {[%emt 0:00:04]} dxc3 {[%emt 0:00:06]} 6. bxc3 {[%emt 0:00:04]} Qxf6 {[%emt 0:00:07]} 7. Nf3 {[%emt 0:01:17]} b6 {[%emt 0:00:09]} 8. g3 {[%emt 0:03:39]} Bb7 {[%emt 0:05:06]} 9. Bg2 {[%emt 0:00:45]} Bd6 {[%emt 0:11:49] The position is equal.} 10. d4 {[%emt 0:00:07] Strongly threatening Bg5.} Nd7 {[%emt 0:05:20]} 11. O-O {[%emt 0:16:18]} (11. Bg5 $14 Qg6 12. Nh4 Qxg5 13. Bxb7) 11... O-O $11 {[%emt 0:09:32]} 12. Re1 {[%emt 0:00:11][%cal Oc4c5]} Rab8 {[%emt 0:06:39]} 13. a4 {[%emt 0:00:05]} a5 {[%emt 0:02:01]} 14. Rb1 {[%emt 0:06:59][%cal Ba1b1,Bb1b5,Bb5h5][%mdl 32]} Ba8 {[%emt 0:01:28]} 15. Rb5 {[%emt 0:05:10]} h6 {[%emt 0:04:10] Wards off Bg5} 16. Rh5 {[%emt 0:10:53]} Rfe8 {[%emt 0:05:23] [#]} (16... Qd8 $11 {remains equal.}) 17. Ne5 $1 $16 {[%emt 0:06:43]} Bxe5 {[%emt 0:17:12]} 18. dxe5 {[%emt 0:00:11]} Qg6 {[%emt 0:00:14]} 19. Rh4 {[%emt 0:09:46] aiming for Bxa8.} Nc5 {[%emt 0:00:37] [#]} (19... Nf8 $142) 20. Bxh6 $1 {[%emt 0:01:29][%mdl 512]} Red8 {[%emt 0:03:21] [#]} ({Reject} 20... gxh6 21. Rg4) (20... Kf8 21. Bc1) 21. Qe2 {[%emt 0:03:29][%cal Oh6g7] And now Bxg7! would win.} Kf8 {[%emt 0:22:33]} 22. Be3 {[%emt 0:03:37] This pair of bishops is nice.} Nxa4 $2 {[%emt 0:01:06]} (22... Kg8) 23. Qa2 $18 {[%emt 0:05:58]} Nc5 $2 {[%emt 0:01:43]} ({Don't play} 23... Nxc3 24. Rh8+ Ke7 25. Qa3+ Kd7 26. Rxd8+ Rxd8 27. Qxc3 $18) (23... Bxg2 $18 24. Kxg2 Nxc3 25. Qa3+ Kg8 26. Qxc3 Qf5) 24. Rh8+ {[%emt 0:02:47]} Ke7 {[%emt 0:00:02]} 25. Bxc5+ {[%emt 0:00:11] White mates.} bxc5 {[%emt 0:00:05] [#]} 26. Qxa5 $1 {[%emt 0:00:17]} Rb1 {[%emt 0:03:17]} (26... Kd7 27. Rd1+) 27. Qxc7+ {[%emt 0:00:13]} Rd7 {[%emt 0:00:08]} 28. Qxc5+ {[%emt 0:00:05] Weighted Error Value: White=0.05 (flawless) /Black=0.53.  Mistake:       	White=1     	Black=4      Inaccurate:     	White=1     	Black=2      OK:         	White=8     	Black=4      Best:        	White=1     	---        Strong:       	White=1     	---} 1-0

[Event "Slovakian ECo-C Extraliga 2024-25"]
[Site "Slovakia"]
[Date "2024.11.24"]
[Round "2.1"]
[White "Neugebauer, Martin"]
[Black "Sahidi, Samir"]
[Result "1/2-1/2"]
[Annotator "RC"]
[ECO "B14"]
[WhiteElo "2525"]
[BlackElo "2485"]
[PlyCount "29"]
[EventDate "2024.09.12"]
[EventType "team-tourn"]
[EventCountry "SVK"]
[SourceTitle "playchess.com"]
[Source "ChessBase"]
[SourceQuality "1"]
[TimeControl "5400+30"]

1. e4 {[%emt 0:00:07]} c6 {[%emt 0:00:11]} 2. d4 {[%emt 0:02:38]} d5 {[%emt 0:00:07]} 3. exd5 {[%emt 0:00:21]} cxd5 {[%emt 0:00:06]} 4. c4 {[%emt 0:00:07]} Nf6 {[%emt 0:00:06]} 5. Nc3 {[%emt 0:00:17]} e6 {[%emt 0:01:33]} 6. Nf3 {[%emt 0:01:18]} Bb4 {[%emt 0:03:46]} 7. cxd5 {[%emt 0:00:51]} exd5 {[%emt 0:05:29]} 8. Bd3 {[%emt 0:13:54]} O-O {[%emt 0:05:12]} 9. O-O {[%emt 0:00:37]} Nc6 {[%emt 0:07:45]} 10. h3 {[%emt 0:02:04]} Re8 {[%emt 0:02:01]} 11. Bg5 {[%emt 0:02:23]} Bxc3 {[%emt 0:05:58]} 12. bxc3 {[%emt 0:00:38]} Qd6 {[%emt 0:00:11]} 13. Re1 {[%emt 0:15:51]} Ne4 {[%emt 0:05:04]} 14. Bxe4 {[%emt 0:09:12]} Rxe4 {[%emt 0:03:13]} 15. Qb3 {[%emt 0:10:22]} 1/2-1/2

[Event "Slovakian ECo-C Extraliga 2024-25"]
[Site "Slovakia"]
[Date "2024.11.24"]
[Round "2.1"]
[White "Mihok, Oliver"]
[Black "Navara, David"]
[Result "1/2-1/2"]
[Annotator "TA"]
[ECO "B94"]
[WhiteElo "2522"]
[BlackElo "2674"]
[PlyCount "43"]
[EventDate "2024.09.12"]
[EventType "team-tourn"]
[EventCountry "SVK"]
[SourceTitle "playchess.com"]
[Source "ChessBase"]
[SourceQuality "1"]
[TimeControl "5400+30"]

{[%evp 11,43,6,10,10,33,16,16,25,17,18,28,8,16,16,15,0,0,0,0,0,0,0,0,0,0,0,0,0,0,0,0,0,0,0]} 1. e4 {[%emt 0:00:06]} c5 {[%emt 0:00:05]} 2. Nf3 {[%emt 0:00:05]} d6 {[%emt 0:00:03]} 3. d4 {[%emt 0:00:24]} cxd4 {[%emt 0:00:04]} 4. Nxd4 {[%emt 0:00:05]} Nf6 {[%emt 0:00:05]} 5. Nc3 {[%emt 0:00:05]} a6 {[%emt 0:00:03]} 6. Bg5 {[%emt 0:00:56]} Nbd7 {[%emt 0:00:19]} 7. Qe2 {[%emt 0:00:42]} h6 {[%emt 0:00:13]} 8. Bh4 {[%emt 0:00:05]} g6 {[%emt 0:00:05]} 9. f4 {[%emt 0:00:17] e5 is the strong threat.} e5 {[%emt 0:00:07]} 10. fxe5 {[%emt 0:00:11]} dxe5 {[%emt 0:00:08] [#]} 11. O-O-O $1 {[%emt 0:00:06]} Qc7 $1 {[%emt 0:00:54] The position is equal.} (11... exd4 $2 {too greedy.} 12. e5 Bc5 (12... d3 $2 13. Rxd3 Bb4 14. Bxf6 $18) 13. exf6+ Kf8 14. Nd5 $18 (14. Qe7+ Qxe7 15. fxe7+ Bxe7 $16)) 12. Nb3 {[%emt 0:00:52][%cal Bd4b3,Bb3a5,Ba5c6][%mdl 32]} b5 {[%emt 0:00:09]} 13. Rxd7 {[%emt 0:01:27]} Nxd7 {[%emt 0:00:19]} 14. Nd5 {[%emt 0:00:04]} Qb8 {[%emt 0:14:08]} 15. Na5 {[%emt 0:00:26]} Bg7 {[%emt 0:05:03]} 16. Qf3 {[%emt 0:00:35][%cal Of1c4] [#] Strongly threatening Bc4!} O-O {[%emt 0:00:39]} 17. Be7 $1 {[%emt 0:00:05][%cal Oa5c6]} Re8 {[%emt 0:00:09] White must now prevent ...Nb6.} 18. Nc6 {[%emt 0:00:03]} Qb7 {[%emt 0:00:03]} 19. Na5 {[%emt 0:00:04] Excellent horsemanship.} Qb8 {[%emt 0:00:49] Hoping for ...Nb6.} 20. Nc6 {[%emt 0:00:05]} Qb7 {[%emt 0:00:03]} 21. Na5 {[%emt 0:00:04]} Qb8 {[%emt 0:00:04] Threatens to win with ...Nb6.} 22. Nc6 {[%emt 0:00:04] Not much happened in this game.   Weighted Error Value: White=0.02 (flawless) /Black=0.02 (flawless) .  OK:         	White=10    	Black=9      Best:        	White=2     	---        Strong:       	White=1     	Black=1} 1/2-1/2

[Event "Slovakian ECo-C Extraliga 2024-25"]
[Site "Slovakia"]
[Date "2024.11.24"]
[Round "2.1"]
[White "Karacsonyi, Gellert"]
[Black "Haring, Filip"]
[Result "1/2-1/2"]
[Annotator "TA"]
[ECO "C55"]
[WhiteElo "2390"]
[BlackElo "2483"]
[PlyCount "43"]
[EventDate "2024.09.12"]
[EventType "team-tourn"]
[EventCountry "SVK"]
[SourceTitle "playchess.com"]
[Source "ChessBase"]
[SourceQuality "1"]
[TimeControl "5400+30"]

{[%evp 12,43,24,4,14,19,32,31,30,24,22,32,25,21,33,29,39,34,35,40,79,81,79,68,63,38,25,10,10,8,11,7,9,13]} 1. e4 {[%emt 0:00:04]} e5 {[%emt 0:00:05]} 2. Nf3 {[%emt 0:00:09]} Nc6 {[%emt 0:00:07]} 3. d4 {[%emt 0:00:19]} exd4 {[%emt 0:00:06]} 4. Bc4 {[%emt 0:00:10]} Nf6 {[%emt 0:00:11]} 5. e5 {[%emt 0:00:09]} Ng4 {[%emt 0:00:07]} 6. O-O {[%emt 0:01:47]} d6 7. exd6 {[%emt 0:00:17]} Qxd6 {[%emt 0:00:55]} 8. Re1+ {[%emt 0:00:56]} Be7 {[%emt 0:00:06]} 9. b3 {[%emt 0:01:00]} O-O {[%emt 0:00:47] White is slightly better.} 10. Ba3 {[%emt 0:00:10]} Qd7 {[%emt 0:01:44]} (10... Qd8 {simplifies} 11. Bxe7 Nxe7 12. Qxd4 Qxd4 13. Nxd4 Ng6) 11. Bxe7 {[%emt 0:00:49]} Nxe7 {[%emt 0:00:05]} 12. Qxd4 {[%emt 0:00:29]} Qxd4 {[%emt 0:00:07]} 13. Nxd4 {[%emt 0:00:05]} Nf5 {[%emt 0:00:08]} 14. Nxf5 {[%emt 0:00:32]} Bxf5 {[%emt 0:00:24]} 15. Re7 {[%emt 0:00:19]} Rad8 {[%emt 0:17:29] [#]} 16. Nc3 {[%emt 0:16:59] Repels Rd1+} a6 {[%emt 0:15:35]} 17. a4 {[%emt 0:11:00]} Bxc2 {[%emt 0:13:01]} 18. Rxc7 {[%emt 0:05:04]} Ne5 {[%emt 0:20:02]} 19. Rxb7 {[%emt 0:31:45]} Nxc4 {[%emt 0:00:08] The position is equal.} 20. bxc4 {[%emt 0:00:04] Threatens to win with Rb6.} Rc8 {[%emt 0:02:03]} 21. Nd5 {[%emt 0:14:14] [#] Black must now prevent Ne7+.} Rxc4 {[%emt 0:00:25]} 22. Ne3 {[%emt 0:00:15] Weighted Error Value: White=0.03 (flawless) /Black=0.06 (flawless) .  Inaccurate:     	---       	Black=1      OK:         	White=9     	Black=3      Best:        	---       	Black=2} 1/2-1/2

[Event "Slovakian ECo-C Extraliga 2024-25"]
[Site "Slovakia"]
[Date "2024.11.24"]
[Round "2.2"]
[White "Babula, Vlastimil"]
[Black "Kaczur, Florian"]
[Result "1/2-1/2"]
[Annotator "RC"]
[ECO "D35"]
[WhiteElo "2496"]
[BlackElo "2509"]
[PlyCount "61"]
[EventDate "2024.09.12"]
[EventType "team-tourn"]
[EventCountry "SVK"]
[SourceTitle "playchess.com"]
[Source "ChessBase"]
[SourceQuality "1"]
[TimeControl "5400+30"]

1. d4 {[%emt 0:00:07]} d5 {[%emt 0:00:18]} 2. c4 {[%emt 0:00:16]} e6 {[%emt 0:00:14]} 3. Nc3 {[%emt 0:00:31]} Nf6 {[%emt 0:01:15]} 4. cxd5 {[%emt 0:00:28]} exd5 {[%emt 0:00:25]} 5. Bg5 {[%emt 0:00:19]} Be6 {[%emt 0:01:10]} 6. e3 {[%emt 0:06:51]} Nbd7 {[%emt 0:01:53]} 7. Bd3 {[%emt 0:02:43]} c6 {[%emt 0:00:52]} 8. h3 {[%emt 0:04:49]} Bd6 {[%emt 0:00:58]} 9. Nge2 {[%emt 0:00:25]} h6 {[%emt 0:01:11]} 10. Bh4 {[%emt 0:01:06]} Qe7 {[%emt 0:07:40]} 11. Rc1 {[%emt 0:05:08]} a6 {[%emt 0:09:46]} 12. O-O {[%emt 0:03:46]} Rc8 {[%emt 0:11:49]} 13. a3 {[%emt 0:11:06]} g5 {[%emt 0:23:43]} 14. Bg3 {[%emt 0:00:20]} h5 {[%emt 0:03:38]} 15. Bxd6 {[%emt 0:13:24]} Qxd6 {[%emt 0:00:04]} 16. f4 {[%emt 0:00:27]} gxf4 {[%emt 0:00:18]} 17. Rxf4 {[%emt 0:04:57]} Rg8 {[%emt 0:03:15]} 18. Kh1 {[%emt 0:03:30]} Ke7 {[%emt 0:00:47]} 19. Qe1 {[%emt 0:04:45]} Rg5 {[%emt 0:02:34]} 20. Qh4 {[%emt 0:03:07]} Rcg8 {[%emt 0:01:29]} 21. Rf2 {[%emt 0:00:32]} Kd8 {[%emt 0:04:33]} 22. b4 {[%emt 0:03:32]} Qe7 {[%emt 0:02:01]} 23. Na4 {[%emt 0:07:46]} Ne8 {[%emt 0:03:59]} 24. Nc5 {[%emt 0:03:57]} Nd6 {[%emt 0:03:10]} 25. Qf4 {[%emt 0:03:43]} Nxc5 {[%emt 0:05:22]} 26. dxc5 {[%emt 0:02:55]} Nc8 {[%emt 0:02:03]} 27. Nd4 {[%emt 0:02:07]} Qc7 {[%emt 0:00:53]} 28. Qf6+ {[%emt 0:06:08]} Qe7 {[%emt 0:00:41]} 29. Qf4 {[%emt 0:00:23]} Qc7 {[%emt 0:00:06]} 30. Qf6+ {[%emt 0:04:50]} Qe7 {[%emt 0:00:05]} 31. Qf4 {[%emt 0:00:21]} 1/2-1/2

[Event "Slovakian ECo-C Extraliga 2024-25"]
[Site "Slovakia"]
[Date "2024.11.24"]
[Round "2.2"]
[White "Mazur, Stefan"]
[Black "Jakab, Bela"]
[Result "1-0"]
[Annotator "TA"]
[ECO "C15"]
[WhiteElo "2412"]
[BlackElo "2361"]
[PlyCount "127"]
[EventDate "2024.09.12"]
[EventType "team-tourn"]
[EventCountry "SVK"]
[SourceTitle "playchess.com"]
[Source "ChessBase"]
[SourceQuality "1"]
[TimeControl "5400+30"]

{[%evp 15,127,32,31,30,28,17,93,100,90,74,68,74,75,65,68,67,62,67,89,53,78,64,82,52,59,61,60,66,85,79,111,97,93,87,89,89,93,87,101,92,80,0,0,-13,-12,-18,-2,-20,-21,-20,-27,-61,-36,-54,0,0,0,-23,-23,-85,0,0,0,0,160,135,123,100,229,264,252,269,280,289,258,405,358,52,8,47,10,0,0,0,0,0,0,0,0,0,27,27,68,68,68,68,300,300,747,709,739,739,720,695,802,655,29977,29978,29978,29979,29979,29971,29982,29975]} 1. e4 {[%emt 0:00:28]} e6 {[%emt 0:00:08]} 2. d4 {[%emt 0:00:07]} d5 {[%emt 0:00:04]} 3. Nc3 {[%emt 0:00:07]} Bb4 {[%emt 0:00:10]} 4. Nge2 {[%emt 0:00:19][%cal Bg1e2,Be2c3,Bc3e4][%mdl 32]} dxe4 {[%emt 0:00:54]} 5. a3 {[%emt 0:00:11]} Bxc3+ {[%emt 0:00:46]} 6. Nxc3 {[%emt 0:00:07]} Nf6 {[%emt 0:01:37]} 7. Bg5 {[%emt 0:00:27]} h6 {[%emt 0:00:29]} 8. Bxf6 {[%emt 0:00:21]} Qxf6 {[%emt 0:00:10]} 9. Nxe4 {[%emt 0:00:06]} Qe7 {[%emt 0:00:46]} 10. Qf3 {[%emt 0:01:41]} c6 {[%emt 0:06:10]} (10... O-O $11) 11. O-O-O $16 {[%emt 0:07:57] White is better.} Nd7 {[%emt 0:02:07]} 12. Bd3 {[%emt 0:02:01] White is much more active. The black rooks are passive.} Nf6 {[%emt 0:08:15]} 13. Rhe1 {[%emt 0:13:37][%cal Bh1e1,Be1e3,Be3d3,Bd3d2][%mdl 32]} Nxe4 {[%emt 0:02:44]} 14. Qxe4 {[%emt 0:00:40]} Bd7 {[%emt 0:00:46]} 15. f4 {[%emt 0:01:02]} O-O-O {[%emt 0:00:47]} 16. g3 {[%emt 0:01:09]} Qf6 {[%emt 0:05:15]} 17. Re3 {[%emt 0:01:02]} Kc7 {[%emt 0:03:34]} 18. Be2 {[%emt 0:08:27]} Bc8 {[%emt 0:02:53]} 19. c4 {[%emt 0:06:41]} Rd6 {[%emt 0:02:28]} 20. Red3 {[%emt 0:03:02]} Rhd8 {[%emt 0:00:46]} 21. h4 {[%emt 0:03:12]} (21. Bf3 {is interesting.} g5 22. Qe5 Qh8 23. Qe3) 21... Qf5 {[%emt 0:06:55]} 22. Qe3 {[%emt 0:04:29]} h5 {[%emt 0:11:06]} 23. R3d2 {[%emt 0:03:05]} g6 {[%emt 0:05:15]} 24. Bf3 {[%emt 0:00:31]} b6 {[%emt 0:05:31]} 25. c5 {[%emt 0:10:24]} R6d7 {[%emt 0:04:33]} 26. b4 {[%emt 0:00:36]} Ba6 {[%emt 0:03:35]} 27. Be4 {[%emt 0:00:57]} Qf6 {[%emt 0:01:12]} 28. cxb6+ {[%emt 0:10:04]} ({White should try} 28. Qc3 $1 $16) 28... axb6 $11 {[%emt 0:00:43]} 29. Qc3 {[%emt 0:00:34]} Bb5 {[%emt 0:06:40]} 30. Kb2 {[%emt 0:06:41]} Rd6 {[%emt 0:02:56]} 31. Kb3 {[%emt 0:01:35] a4 would now be deadly.} Ra8 {[%emt 0:01:00] aiming for ...Ba4+.} 32. Rc1 {[%emt 0:00:07]} Kd7 {[%emt 0:01:16]} 33. Kb2 {[%emt 0:06:49]} Ke7 {[%emt 0:01:53]} 34. Bc2 {[%emt 0:00:04]} Rd5 {[%emt 0:02:43]} (34... Kf8 $15) 35. Bb3 {[%emt 0:00:34]} Rd6 {[%emt 0:00:42]} 36. Re1 {[%emt 0:02:17]} Kf8 {[%emt 0:01:34]} 37. Re5 {[%emt 0:01:05]} (37. Qe3 $11 {remains equal.}) 37... Qd8 {[%emt 0:02:42]} (37... Ra7 $17) 38. g4 {[%emt 0:02:32]} hxg4 {[%emt 0:01:55]} (38... Qxh4 39. gxh5 gxh5 40. f5 $16) 39. h5 {[%emt 0:00:10]} gxh5 {[%emt 0:01:19]} (39... Qf6 $11) 40. f5 $1 $16 {[%emt 0:04:28]} f6 {[%emt 0:04:42]} (40... exf5 $2 41. Rxf5 Ra7 42. Rdf2) 41. Rxe6 {[%emt 0:00:00]} Rxe6 {[%emt 0:00:00]} (41... Ba4 $16 {keeps fighting.} 42. Bxa4 Rxa4) 42. fxe6 $18 {[%emt 0:00:00]} Qd6 {[%emt 0:00:00]} 43. d5 {[%emt 0:00:00]} Qe5 {[%emt 0:00:00]} 44. Qxe5 {[%emt 0:00:00]} fxe5 {[%emt 0:00:00][%mdl 4096] Endgame. KRB-KRB} 45. Rf2+ {[%emt 0:00:00]} Kg7 {[%emt 0:00:00] [#] White must now prevent ...cxd5.} 46. a4 $2 {[%emt 0:00:00]} g3 $1 $14 {[%emt 0:00:00]} (46... Bxa4 $2 47. Bxa4 g3 (47... Rxa4 $2 48. e7 $18) 48. Rf7+ (48. Bxc6 $2 gxf2 49. Bxa8 f1=Q $19) 48... Kh6 49. Rf1 (49. Bxc6 g2 $11) 49... cxd5 (49... Rxa4 $2 50. e7 $18) 50. e7 $18) 47. Rf7+ {[%emt 0:00:00]} Kh6 $1 {[%emt 0:00:00]} 48. Bc2 {[%emt 0:00:00]} (48. axb5 g2 49. Bc2 (49. Rf6+ $2 Kg7 $19) 49... Rg8 $19 (49... g1=Q $2 50. Rh7+ Kg5 51. Rg7+ Kf6 52. Rxg1 $18)) (48. d6 {looks sharper.} g2 49. Bc2 Rg8 50. d7) 48... cxd5 {[%emt 0:00:00]} 49. Rh7+ $1 {[%emt 0:00:00]} Kg5 {[%emt 0:00:00][%cal Oa8g8] Hoping for ...Rg8!} 50. axb5 $11 {[%emt 0:00:00] Threatens to win with Bb3. KRB-KR} Rg8 {[%emt 0:00:00]} 51. e7 {[%emt 0:00:00]} Kf6 {[%emt 0:00:00] Against Rg7} 52. Rxh5 {[%emt 0:00:00]} e4 {[%emt 0:01:23] Strongly threatening ...g2.} (52... g2 $2 53. e8=Q Rxe8 54. Rf5+ Ke6 55. Rg5 $16) 53. Rxd5 {[%emt 0:00:00] Threatening mate with Rd8.} g2 {[%emt 0:01:18]} (53... Kxe7 $2 54. Rd1 $18 (54. Bxe4 g2 $11)) 54. Rd1 {[%emt 0:00:01]} Kxe7 {[%emt 0:00:51]} (54... g1=R $2 55. Rxg1 Rh8 56. Bxe4 $18) 55. Rg1 $1 {[%emt 0:00:45]} Rg4 {[%emt 0:02:18] [#]} ({Better is} 55... e3 $1 $14) 56. Kc3 $1 $18 {[%emt 0:01:09] Kd4 is the strong threat.} e3 $2 {[%emt 0:00:34] [#]} (56... Kd6 57. Kd4 e3+ 58. Kxe3 Rxb4) 57. Bd1 $1 {[%emt 0:00:40]} Rg3 {[%emt 0:00:31]} 58. Kd4 {[%emt 0:00:07]} Kf6 {[%emt 0:00:14]} 59. Ke4 {[%emt 0:00:46]} Kg5 {[%emt 0:02:05]} 60. Bf3 {[%emt 0:00:07]} Kh4 {[%emt 0:00:09]} 61. Kxe3 {[%emt 0:00:14] White mates.} (61. Rxg2 $2 {is the wrong capture.} Rxg2 62. Kxe3 (62. Bxg2 $2 {too greedy.} e2 $19) 62... Rb2 $19) 61... Rg5 {[%emt 0:00:45]} 62. Rxg2 {[%emt 0:00:42]} Rxb5 {[%emt 0:00:04]} 63. Rb2 {[%emt 0:01:35]} Kg3 {[%emt 0:00:06]} 64. Bc6 {[%emt 0:00:06] Weighted Error Value: White=0.15 (very precise) /Black=0.33.  Loses game:     	---       	Black=1      Missed win:     	White=1     	---        Mistake:       	White=2     	Black=6      Inaccurate:     	White=3     	Black=3      OK:         	White=15    	Black=19     Best:        	White=6     	Black=1      Strong:       	White=5     	Black=2} 1-0